bitfinex-derivatives/quotes_BTCF0:USTF0_20250309
["timestamp","ask_amount","ask_price","bid_price","bid_amount"]
[1741557363857,0.05,82007.0,82005.0,0.096]
[1741557364050,0.05,82007.0,82006.0,0.482752]
[1741557364255,0.05,82007.0,82006.0,0.6124]
[1741557364460,0.05,82007.0,82006.0,1.000652]
[1741557364760,0.05,82007.0,82006.0,0.8787]
[1741557364960,0.05,82007.0,82006.0,1.000652]
[1741557365267,0.05,82007.0,82006.0,0.8787]
[1741557367066,0.05,82007.0,82006.0,1.000652]
[1741557368154,0.05,82007.0,82006.0,0.8787]
[1741557368355,0.05,82007.0,82006.0,0.3608]
[1741557368356,0.1719505,82007.0,82006.0,0.3608]
[1741557368756,0.05,82007.0,82006.0,0.3608]
[1741557369164,0.3138,82007.0,82006.0,0.3608]
[1741557369359,0.4357505,82007.0,82006.0,0.3608]
[1741557370162,0.3138,82007.0,82006.0,0.3608]
[1741557370761,0.3138,82007.0,82006.0,0.482752]
[1741557370962,0.3138,82007.0,82006.0,0.3608]
[1741557371264,0.6746,82007.0,82003.0,0.09528]
[1741557371469,0.3733529,82006.0,82003.0,0.09528]
[1741557371767,0.0609767,82005.0,81998.0,0.00018297]
[1741557371971,0.1219624,81999.0,81998.0,0.00018297]
[1741557372160,0.1219743,81991.0,81990.0,0.36144]
[1741557372360,0.07,81991.0,81979.0,0.09492]
[1741557372570,0.07,81991.0,81976.0,0.1219955]
[1741557372571,0.0609909,81986.0,81976.0,0.09492]
[1741557372765,0.1219951,81977.0,81976.0,0.09492]
[1741557372957,0.1519951,81977.0,81976.0,0.09492]
[1741557373163,0.0610001,81974.0,81970.0,0.49956144]
[1741557373360,0.2537,81973.0,81970.0,0.09488]
[1741557373566,0.5424,81973.0,81970.0,0.09488]
[1741557373767,0.6644012,81973.0,81970.0,0.09488]
[1741557374069,0.1220041,81971.0,81970.0,0.09488]
[1741557374266,0.04,81971.0,81970.0,0.09488]
[1741557374459,0.04,81971.0,81970.0,0.45568]
[1741557374655,0.1620041,81971.0,81970.0,0.09488]
[1741557375167,0.1620041,81971.0,81968.0,0.0001527]
[1741557375366,0.1620041,81971.0,81958.0,0.3608]
[1741557375367,0.3608,81969.0,81949.0,0.3608]
[1741557375669,0.1220353,81950.0,81949.0,0.3608]
[1741557375970,0.1620353,81950.0,81949.0,0.3608]
[1741557376676,0.6690353,81950.0,81949.0,0.3608]
[1741557376969,0.1220448,81944.0,81943.0,0.1220458]
[1741557377169,0.3820448,81944.0,81943.0,0.1220458]
[1741557377368,0.1220592,81934.0,81930.0,0.40468144]
[1741557377572,0.04,81934.0,81933.0,0.4554]
[1741557377974,0.1620592,81934.0,81933.0,0.4554]
[1741557378266,0.5228592,81934.0,81933.0,0.0946]
[1741557378467,0.1620592,81934.0,81933.0,0.0946]
[1741557378876,0.4088592,81934.0,81933.0,0.0946]
[1741557379070,0.6476,81934.0,81927.0,0.3608]
[1741557379271,0.1220681,81928.0,81927.0,0.3608]
[1741557379477,0.04,81928.0,81927.0,0.4828696]
[1741557379668,0.04,81928.0,81927.0,0.1220696]
[1741557380069,0.04,81928.0,81926.0,0.1220702]
[1741557380274,0.1220711,81926.0,81925.0,0.2519]
[1741557380574,0.3720711,81926.0,81925.0,0.2519]
[1741557380871,0.1220785,81921.0,81920.0,0.66988144]
[1741557381066,0.1220785,81921.0,81920.0,0.5231]
[1741557381067,0.03,81921.0,81920.0,0.5231]
[1741557381462,0.03,81921.0,81920.0,0.64518]
[1741557382674,0.023,81921.0,81920.0,0.64518]
[1741557382974,0.12223558,81939.0,81924.0,0.0610363]
[1741557383169,0.24018308,81939.0,81931.0,0.3608]
[1741557383479,0.2514,81938.0,81932.0,0.4998]
[1741557383674,0.3014,81938.0,81932.0,0.4998]
[1741557385282,0.1220555,81937.0,81932.0,0.4998]
[1741557385472,0.05,81937.0,81932.0,0.2484]
[1741557385779,0.05,81937.0,81933.0,0.2416]
[1741557386172,0.05,81937.0,81934.0,0.254]
[1741557386679,0.05,81937.0,81935.0,0.2416]
[1741557387174,0.05,81937.0,81936.0,0.254]
[1741557389383,0.05,81937.0,81936.0,0.3760562]
[1741557389574,0.05,81937.0,81936.0,0.254]
[1741557390375,0.04,81937.0,81936.0,0.254]
[1741557390581,0.1220642,81931.0,81929.0,0.2441]
[1741557390779,0.02,81931.0,81930.0,0.2153051]
[1741557392579,0.02,81931.0,81930.0,0.09324]
[1741557395491,0.1420636,81931.0,81930.0,0.09324]
[1741557395892,0.02,81931.0,81930.0,0.09324]
[1741557396296,0.1420636,81931.0,81930.0,0.09324]
[1741557396600,0.02,81931.0,81930.0,0.09324]
[1741557396998,0.02,81931.0,81930.0,0.2153051]
[1741557397191,0.02,81931.0,81930.0,0.4783051]
[1741557397392,0.02,81931.0,81930.0,0.35624]
[1741557398002,0.1200615,81933.0,81930.0,0.35624]
[1741557398202,0.1700615,81933.0,81930.0,0.35624]
[1741557398397,0.05,81933.0,81930.0,0.35624]
[1741557398606,0.1220636,81931.0,81930.0,0.09324]
[1741557398800,0.3720636,81931.0,81930.0,0.09324]
[1741557400405,0.25,81931.0,81919.0,0.09196]
[1741557400707,0.12208,81920.0,81919.0,0.09196]
[1741557400905,0.19208,81920.0,81919.0,0.09196]
[1741557401607,0.89114,81920.0,81890.0,0.3608]
[1741557401809,0.1221233,81891.0,81890.0,0.3608]
[1741557401995,0.1521233,81891.0,81890.0,0.37682472]
[1741557403105,0.5129233,81891.0,81890.0,0.01602472]
[1741557403310,0.1221352,81883.0,81882.0,0.00896171]
[1741557403497,0.1721352,81883.0,81882.0,0.00896171]
[1741557403703,0.1221367,81882.0,81881.0,0.3608]
[1741557403904,0.4346367,81882.0,81881.0,0.3608]
[1741557404300,0.3125,81882.0,81878.0,0.3608]
[1741557404505,0.1221412,81879.0,81878.0,0.3608]
[1741557404706,0.4021412,81879.0,81878.0,0.3608]
[1741557405203,0.4021412,81879.0,81875.0,0.21604631]
[1741557405399,0.1221456,81876.0,81875.0,0.21604631]
[1741557405706,0.1821456,81876.0,81875.0,0.21604631]
[1741557405905,0.1741456,81876.0,81875.0,0.21604631]
[1741557406106,0.06,81876.0,81875.0,0.21604631]
[1741557406411,0.2179,81906.0,81882.0,0.0610681]
[1741557406706,0.26246658,81930.0,81882.0,0.0610681]
[1741557406707,0.04,81902.0,81901.0,0.1221083]
[1741557406901,0.01259541,81902.0,81901.0,0.6366019]
[1741557407096,0.5107,81928.0,81903.0,0.0610521]
[1741557407311,0.09,81928.0,81927.0,0.3608]
[1741557407512,0.09,81928.0,81927.0,0.4536]
[1741557407709,0.09,81928.0,81904.0,0.2493]
[1741557407710,0.09,81928.0,81914.0,0.00904403]
[1741557407906,0.12208,81920.0,81919.0,0.0001832]
[1741557408215,0.20208,81920.0,81919.0,0.0001832]
[1741557409317,0.20208,81920.0,81907.0,0.0934]
[1741557409318,0.1220979,81908.0,81907.0,0.0934]
[1741557409509,0.1221069,81902.0,81897.0,0.09332]
[1741557409706,0.1221069,81902.0,81892.0,0.2469]
[1741557409707,0.1721069,81902.0,81892.0,0.2469]
[1741557409899,0.1721069,81902.0,81891.0,0.09336]
[1741557409900,0.05,81902.0,81891.0,0.09336]
[1741557410099,0.1221248,81890.0,81889.0,0.37016575]
[1741557410304,0.1621248,81890.0,81889.0,0.37016575]
[1741557410906,0.4183248,81890.0,81889.0,0.37016575]
[1741557411408,0.2962,81890.0,81889.0,0.37016575]
[1741557413209,0.2962,81890.0,81889.0,0.4829262]
[1741557413600,0.2742,81890.0,81889.0,0.4829262]
[1741557413806,0.2742,81890.0,81889.0,0.3608]
[1741557414813,0.3963248,81890.0,81889.0,0.3608]
[1741557415010,0.2742,81890.0,81889.0,0.3608]
[1741557415419,0.2742,81890.0,81882.0,0.2421]
[1741557415420,0.1221305,81887.0,81882.0,0.2421]
[1741557415714,0.3018661,81886.0,81883.0,0.01566374]
[1741557416011,0.1221337,81884.0,81883.0,0.01566374]
[1741557416218,0.06,81884.0,81883.0,0.01566374]
[1741557416411,0.06,81884.0,81883.0,0.6243352]
[1741557417808,0.06,81884.0,81883.0,0.7168952]
[1741557418619,0.0001832,81898.0,81883.0,0.59476]
[1741557418914,0.0601832,81898.0,81897.0,0.4829143]
[1741557419510,0.0601832,81898.0,81897.0,0.7438143]
[1741557419906,0.09,81911.0,81910.0,0.1220949]
[1741557420107,0.02881639,81920.0,81914.0,0.122089]
[1741557420308,5e-08,81925.0,81924.0,0.1220741]
[1741557420514,5e-08,81925.0,81924.0,0.2147141]
[1741557420919,5e-08,81925.0,81924.0,0.7242141]
[1741557421216,0.22723758,81935.0,81924.0,0.61709749]
[1741557421415,0.122066,81930.0,81924.0,0.35619749]
[1741557421620,0.2492,81929.0,81924.0,0.35619749]
[1741557421812,0.7705,81929.0,81924.0,0.34124]
[1741557422512,0.1220681,81928.0,81924.0,0.34124]
[1741557422821,0.26,81928.0,81924.0,0.34124]
[1741557423016,0.5024,81927.0,81924.0,0.34124]
[1741557423219,0.8844704,81927.0,81924.0,0.34124]
[1741557423619,0.8844704,81927.0,81924.0,0.2486]
[1741557423820,0.7624,81927.0,81924.0,0.2486]
[1741557424021,0.884471,81927.0,81924.0,0.2486]
[1741557424216,0.7624,81927.0,81924.0,0.2486]
[1741557426018,0.7624,81927.0,81925.0,0.1220715]
[1741557426516,0.7624,81927.0,81924.0,0.2486]
[1741557427516,0.1220726,81925.0,81924.0,0.2486]
[1741557427723,0.1820726,81925.0,81924.0,0.2486]
[1741557428117,0.06,81925.0,81916.0,0.0001832]
[1741557428325,0.0610385,81922.0,81916.0,0.0001832]
[1741557428624,0.1220845,81917.0,81905.0,0.36152]
[1741557428815,0.1221262,81889.0,81886.0,0.09184]
[1741557429122,0.1221262,81889.0,81879.0,0.36333572]
[1741557429123,0.7329262,81889.0,81879.0,0.36261572]
[1741557429724,1.2387262,81889.0,81879.0,0.36261572]
[1741557429925,1.2387262,81889.0,81880.0,0.00018308]
[1741557430519,0.1221322,81885.0,81880.0,0.00018308]
[1741557430723,0.25,81885.0,81880.0,0.00018308]
[1741557430920,0.25,81885.0,81863.0,0.0918]
[1741557430921,0.4218694,81881.0,81863.0,0.0918]
[1741557431125,0.1221576,81868.0,81860.0,0.0918]
[1741557431320,0.2121576,81868.0,81863.0,0.0610823]
[1741557431627,0.2121576,81868.0,81865.0,0.0610804]
[1741557431628,0.09,81868.0,81865.0,0.0610804]
[1741557431826,0.09,81868.0,81859.0,0.3608]
[1741557431827,0.2121576,81868.0,81859.0,0.3608]
[1741557432024,0.7274576,81868.0,81859.0,0.3608]
[1741557432224,0.1221761,81856.0,81850.0,0.122183]
[1741557432427,0.5153,81855.0,81854.0,0.34077952]
[1741557432720,0.907477,81855.0,81854.0,0.34077952]
[1741557432927,0.7853,81855.0,81854.0,0.70157952]
[1741557433619,0.7853,81855.0,81854.0,0.57940102]
[1741557433825,0.907477,81855.0,81854.0,0.21860102]
[1741557434930,0.907477,81855.0,81854.0,0.22560102]
[1741557434931,0.908477,81855.0,81854.0,0.22560102]
[1741557435535,1.269277,81855.0,81854.0,0.22560102]
[1741557435731,0.1221949,81843.0,81842.0,0.36148]
[1741557435929,0.3521949,81843.0,81842.0,0.3608]
[1741557436732,0.8515949,81843.0,81842.0,0.3608]
[1741557437934,0.8525949,81843.0,81842.0,0.3648]
[1741557438533,0.8515949,81843.0,81842.0,0.3648]
[1741557439141,0.8515949,81843.0,81842.0,0.004]
[1741557439537,0.8515949,81843.0,81829.0,0.2426]
[1741557439538,0.0610984,81842.0,81829.0,0.2426]
[1741557439834,0.1222143,81830.0,81829.0,0.2426]
[1741557440037,0.3922143,81830.0,81829.0,0.2426]
[1741557440934,0.27,81830.0,81829.0,0.2426]
[1741557441542,0.6323143,81830.0,81829.0,0.2426]
[1741557441947,0.6333143,81830.0,81829.0,0.2426]
[1741557442342,0.256,81830.0,81829.0,0.2426]
[1741557442548,0.256,81830.0,81829.0,0.3648158]
[1741557442745,0.23215814,81880.0,81829.0,0.3926]
[1741557442746,0.2419,81861.0,81829.0,0.3926]
[1741557443050,0.0401832,81851.0,81850.0,0.3498]
[1741557443250,0.1623661,81851.0,81850.0,0.3498]
[1741557443446,0.0214832,81851.0,81850.0,0.4719844]
[1741557443747,0.0610582,81896.0,81874.0,0.1221478]
[1741557443951,0.30940441,81882.0,81881.0,0.3608]
[1741557444248,0.30940441,81882.0,81881.0,0.45172]
[1741557444550,0.1,81895.0,81888.0,0.1221274]
[1741557444848,0.03,81895.0,81894.0,0.3608]
[1741557445148,0.03,81895.0,81894.0,0.45164]
[1741557445359,0.1521173,81895.0,81894.0,0.3608]
[1741557445944,0.03,81895.0,81884.0,0.09084]
[1741557446147,0.03,81895.0,81881.0,0.3608]
[1741557446148,0.1221367,81882.0,81881.0,0.3608]
[1741557446345,0.1221471,81875.0,81874.0,0.00064]
[1741557446546,0.1221486,81874.0,81873.0,0.0001832]
[1741557446850,0.8961486,81874.0,81873.0,0.0001832]
[1741557447249,1.2569486,81874.0,81873.0,0.0001832]
[1741557449152,1.3475886,81874.0,81873.0,0.0001832]
[1741557449547,1.22544,81874.0,81856.0,0.2577]
[1741557449753,0.1221711,81859.0,81856.0,0.2577]
[1741557449948,0.5137,81858.0,81856.0,0.2577]
[1741557450149,0.1221814,81852.0,81851.0,0.3608]
[1741557450347,0.1621814,81852.0,81851.0,0.3608]
[1741557450753,0.1621814,81852.0,81851.0,0.45124]
[1741557451054,0.1621814,81852.0,81851.0,0.09044]
[1741557451253,0.1221964,81842.0,81841.0,0.36144]
[1741557451454,0.1222068,81835.0,81834.0,0.09048]
[1741557451655,0.3622068,81835.0,81834.0,0.09048]
[1741557452753,0.24,81835.0,81820.0,0.7637561]
[1741557452944,0.24,81835.0,81820.0,0.65684685]
[1741557452945,0.0611061,81832.0,81820.0,0.65684685]
[1741557453150,0.2415,81831.0,81821.0,0.09032]
[1741557453455,0.5726066,81831.0,81821.0,0.09032]
[1741557453761,0.6948199,81831.0,81821.0,0.09032]
[1741557453950,0.1222162,81829.0,81821.0,0.09032]
[1741557454146,0.3622162,81829.0,81821.0,0.09032]
[1741557454354,0.1222177,81828.0,81821.0,0.09032]
[1741557454546,0.25,81828.0,81821.0,0.09032]
[1741557454753,0.1222194,81827.0,81821.0,0.09032]
[1741557454957,0.3608,81857.0,81836.0,0.0611025]
[1741557455150,0.03,81856.0,81855.0,0.122177]
[1741557455355,0.05,81856.0,81855.0,0.0904]
[1741557455653,0.05,81856.0,81855.0,0.212577]
[1741557456058,0.29512,81869.0,81868.0,0.1221576]
[1741557456358,0.04,81869.0,81868.0,0.5732776]
[1741557456953,0.21293423,81876.0,81873.0,0.0610744]
[1741557457153,0.2179,81909.0,81875.0,0.3608]
[1741557457154,0.2592,81898.0,81875.0,0.3608]
[1741557457353,0.1221173,81895.0,81894.0,0.3608]
[1741557457655,0.3721173,81895.0,81894.0,0.3608]
[1741557457853,0.228,81895.0,81894.0,0.3608]
[1741557458255,0.3501173,81895.0,81894.0,0.3608]
[1741557458857,0.3501173,81895.0,81875.0,0.4218728]
[1741557458858,0.061072,81878.0,81861.0,0.3608]
[1741557459156,0.2585,81877.0,81864.0,0.2512]
[1741557459370,0.1221584,81868.0,81864.0,0.2512]
[1741557459556,0.5237,81867.0,81864.0,0.2512]
[1741557459753,0.7637,81867.0,81864.0,0.2512]
[1741557459949,0.1221665,81862.0,81861.0,0.3608]
[1741557460155,0.4121665,81862.0,81861.0,0.3608]
[1741557460655,0.1221725,81858.0,81857.0,0.00018319]
[1741557460853,0.4021725,81858.0,81857.0,0.00018319]
[1741557465861,0.3801725,81858.0,81857.0,0.00018319]
[1741557470060,0.28,81858.0,81857.0,0.12235719]
[1741557470961,0.28,81858.0,81857.0,0.62455719]
[1741557471156,0.2766,81858.0,81857.0,0.62455719]
[1741557472264,0.06,81871.0,81857.0,0.65238319]
[1741557472567,0.1221561,81869.0,81868.0,0.3608]
[1741557472767,0.1621561,81869.0,81868.0,0.45048]
[1741557473769,0.04,81869.0,81868.0,0.45048]
[1741557479663,0.04,81869.0,81868.0,0.96198]
[1741557480471,0.04,81869.0,81868.0,1.0841376]
[1741557483174,0.04,81869.0,81868.0,0.2118376]
[1741557483766,0.04,81869.0,81868.0,0.08968]
[1741557484267,0.3032,81869.0,81868.0,0.08968]
[1741557484665,0.3032,81869.0,81868.0,0.60218]
[1741557485774,0.4253561,81869.0,81868.0,0.60218]
[1741557486272,0.3032,81869.0,81868.0,0.7243376]
[1741557486475,0.3032,81869.0,81868.0,1.0851376]
[1741557487671,0.3032,81869.0,81868.0,0.96298]
[1741557488371,0.4253561,81869.0,81868.0,0.96298]
[1741557488761,0.3032,81869.0,81868.0,0.96298]
[1741557489768,0.3032,81869.0,81868.0,1.0851376]
[1741557490267,0.3032,81869.0,81868.0,0.96298]
[1741557490468,0.3032,81869.0,81868.0,1.0851376]
[1741557490669,0.04,81869.0,81868.0,1.0851376]
[1741557492276,0.04,81869.0,81868.0,0.96298]
[1741557492768,0.04,81869.0,81868.0,1.0851376]
[1741557497277,0.04,81869.0,81868.0,0.96298]
[1741557497469,0.04,81869.0,81868.0,0.45048]
[1741557497798,0.04,81869.0,81868.0,0.3608]
[1741557497981,0.04,81869.0,81868.0,0.45044]
[1741557498371,0.04,81869.0,81868.0,0.08964]
[1741557500678,0.04,81869.0,81868.0,0.2117976]
[1741557502476,0.04,81869.0,81868.0,0.08964]
[1741557502980,0.25447916,81869.0,81868.0,0.08964]
[1741557504881,0.37663526,81869.0,81868.0,0.08964]
[1741557505680,0.37663526,81869.0,81868.0,0.45044]
[1741557505889,0.1621561,81869.0,81868.0,0.45044]
[1741557508884,0.6721561,81869.0,81868.0,0.3608]
[1741557509288,0.9108,81869.0,81857.0,0.00018319]
[1741557509492,0.3608,81858.0,81845.0,0.08964]
[1741557509790,0.3608,81858.0,81840.0,0.3608]
[1741557509791,0.1221979,81841.0,81840.0,0.3608]
[1741557509977,0.3821979,81841.0,81840.0,0.3608]
[1741557510177,0.1222009,81839.0,81838.0,0.29003874]
[1741557510386,0.39649737,81839.0,81838.0,0.29003874]
[1741557510779,0.64619737,81839.0,81838.0,0.29003874]
[1741557511385,0.62419737,81839.0,81838.0,0.29003874]
[1741557514192,0.62419737,81839.0,81829.0,0.01449134]
[1741557514193,0.62572078,81839.0,81829.0,0.01449134]
[1741557514392,0.1222231,81825.0,81821.0,0.08964]
[1741557514593,0.489,81824.0,81821.0,0.2118676]
[1741557514893,0.8412235,81824.0,81821.0,0.08964]
[1741557515283,0.719,81824.0,81821.0,0.08964]
[1741557515483,0.122226,81823.0,81821.0,0.08964]
[1741557515683,0.1222262,81822.0,81821.0,0.08964]
[1741557515882,0.6612262,81822.0,81821.0,0.08964]
[1741557516286,0.6612262,81822.0,81821.0,0.09882129]
[1741557516684,0.05,81822.0,81821.0,0.09882129]
[1741557517291,0.05,81822.0,81821.0,0.11354451]
[1741557517484,0.1722262,81822.0,81821.0,0.11354451]
[1741557518195,0.048,81822.0,81821.0,0.11354451]
[1741557518783,0.049,81822.0,81821.0,0.11554451]
[1741557519191,0.07818331,81835.0,81834.0,0.1222083]
[1741557519397,0.40229529,81843.0,81834.0,0.81124]
[1741557519589,0.49229529,81843.0,81841.0,0.3608]
[1741557519897,0.49229529,81843.0,81842.0,0.60544]
[1741557520307,0.61449019,81843.0,81842.0,0.60544]
[1741557520999,0.49229529,81843.0,81842.0,0.60544]
[1741557521185,0.1222068,81835.0,81834.0,0.00018331]
[1741557521389,0.5430068,81835.0,81834.0,0.08982331]
[1741557521595,0.5430068,81835.0,81821.0,0.38670451]
[1741557521596,0.1222262,81822.0,81821.0,0.02590451]
[1741557521895,0.3662262,81822.0,81821.0,0.02390451]
[1741557522098,0.3662262,81822.0,81818.0,0.08964]
[1741557522285,0.4895,81821.0,81818.0,0.08964]
[1741557522491,0.7595,81821.0,81818.0,0.61394]
[1741557522692,0.7535,81821.0,81818.0,0.61394]
[1741557522893,0.7535,81821.0,81818.0,0.62865465]
[1741557523198,0.27,81821.0,81820.0,0.1222292]
[1741557523700,0.27,81821.0,81818.0,0.99933196]
[1741557523894,0.27,81821.0,81818.0,0.99869196]
[1741557525304,0.271,81821.0,81818.0,1.00569196]
[1741557525899,0.271,81821.0,81819.0,0.2118707]
[1741557526293,0.271,81821.0,81820.0,0.5018]
[1741557526493,0.271,81821.0,81820.0,0.59144]
[1741557526890,0.249,81821.0,81820.0,0.7136692]
[1741557527093,0.00018331,81828.0,81827.0,0.1222188]
[1741557527299,0.04,81841.0,81840.0,0.1221994]
[1741557527600,0.27,81841.0,81840.0,0.5440985]
[1741557527810,0.27,81841.0,81840.0,0.3608]
[1741557528495,0.27,81841.0,81838.0,0.4936]
[1741557528692,0.27,81841.0,81834.0,0.3608]
[1741557528893,0.1192068,81835.0,81834.0,0.3608]
[1741557529093,0.2392068,81835.0,81834.0,0.3608]
[1741557529800,0.12,81835.0,81834.0,0.3608]
[1741557530008,0.2422068,81835.0,81834.0,0.3608]
[1741557531391,0.2422068,81835.0,81834.0,0.3648]
[1741557532201,0.2422068,81835.0,81834.0,0.002]
[1741557532600,0.1222188,81827.0,81826.0,0.0896]
[1741557532795,0.23,81827.0,81820.0,0.3608]
[1741557532996,0.23,81827.0,81821.0,0.122227]
[1741557532997,0.2372,81826.0,81821.0,0.122227]
[1741557533201,0.1222237,81824.0,81821.0,0.122227]
[1741557533405,0.3922237,81824.0,81820.0,0.3608]
[1741557533696,0.27,81824.0,81821.0,0.122227]
[1741557534095,0.27,81824.0,81823.0,0.1222248]
[1741557534704,0.27,81824.0,81820.0,0.3608]
[1741557534705,0.261,81824.0,81820.0,0.3608]
[1741557534905,0.261,81824.0,81821.0,0.499]
[1741557535501,0.262,81824.0,81821.0,0.499]
[1741557536208,0.3842236,81824.0,81821.0,0.499]
[1741557536508,0.2557,81823.0,81821.0,0.499]
[1741557536707,0.4857,81823.0,81821.0,0.499]
[1741557537717,0.1222262,81822.0,81821.0,0.499]
[1741557537900,0.3522262,81822.0,81821.0,0.499]
[1741557538102,0.6043262,81822.0,81821.0,0.499]
[1741557538898,0.1222307,81819.0,81818.0,0.01454138]
[1741557539101,0.3922307,81819.0,81818.0,0.0896]
[1741557540108,0.1222412,81812.0,81811.0,0.2613]
[1741557540300,0.1222427,81811.0,81810.0,0.00935759]
[1741557540609,0.1222442,81810.0,81809.0,0.4504]
[1741557540801,0.3922442,81810.0,81809.0,0.4504]
[1741557540999,0.8953442,81810.0,81809.0,0.4504]
[1741557541605,1.2561442,81810.0,81809.0,0.09132642]
[1741557541908,0.8953442,81810.0,81809.0,0.09132642]
[1741557542307,0.8953442,81810.0,81809.0,0.01472642]
[1741557542609,0.1222561,81802.0,81801.0,0.09889521]
[1741557542818,0.23,81802.0,81801.0,0.22115281]
[1741557543007,0.69367315,81819.0,81818.0,0.1222322]
[1741557543214,0.21088732,81819.0,81817.0,0.4504]
[1741557543402,0.18630623,81819.0,81818.0,0.5879]
[1741557543906,0.21391821,81825.0,81818.0,0.5879]
[1741557543907,0.20769048,81825.0,81824.0,0.1222233]
[1741557544111,0.21524,81848.0,81824.0,0.3608]
[1741557544310,0.27,81848.0,81847.0,0.3608]
[1741557544810,0.3921874,81848.0,81847.0,0.3608]
[1741557545014,0.3921874,81848.0,81847.0,0.8491]
[1741557545604,0.8849874,81848.0,81847.0,0.8491]
[1741557545805,0.7628,81848.0,81847.0,0.8491]
[1741557546004,0.7628,81848.0,81847.0,0.86337504]
[1741557546499,0.27,81848.0,81847.0,0.98556394]
[1741557546705,0.28463352,81870.0,81847.0,1.38323006]
[1741557547003,0.50998155,81865.0,81864.0,0.1221635]
[1741557547200,0.50998155,81865.0,81864.0,0.2117635]
[1741557547403,0.50998155,81865.0,81864.0,0.0896]
[1741557547813,0.50998155,81865.0,81864.0,0.6076]
[1741557548508,0.50998155,81865.0,81864.0,0.7297635]
[1741557548908,0.50998155,81865.0,81864.0,0.6076]
[1741557549210,0.50998155,81865.0,81864.0,0.0896]
[1741557549512,0.26,81865.0,81864.0,0.0896]
[1741557549708,0.382162,81865.0,81862.0,0.3608]
[1741557550013,0.382162,81865.0,81857.0,0.00064]
[1741557550014,0.122174,81857.0,81856.0,0.00018331]
[1741557550204,0.370174,81857.0,81856.0,0.00018331]
[1741557551006,0.27,81857.0,81856.0,0.00018331]
[1741557551707,0.905574,81857.0,81856.0,0.00018331]
[1741557552323,0.5197,81857.0,81856.0,0.00018331]
[1741557552509,0.03,81870.0,81869.0,0.1221561]
[1741557552706,0.00018331,81873.0,81869.0,0.8722379]
[1741557552904,0.3608,81888.0,81870.0,0.26]
[1741557552905,0.2477,81887.0,81870.0,0.26]
[1741557553108,0.07,81887.0,81886.0,0.1221307]
[1741557553405,0.07,81887.0,81886.0,0.5724907]
[1741557554112,0.07,81887.0,81886.0,1.11092742]
[1741557554315,0.00018318,81895.0,81886.0,1.13879672]
[1741557554510,0.00018318,81895.0,81894.0,0.4829188]
[1741557554511,0.01,81895.0,81894.0,0.4829188]
[1741557554707,0.24998155,81900.0,81899.0,0.1221113]
[1741557554906,0.30998155,81900.0,81899.0,0.2116313]
[1741557555711,0.22498155,81900.0,81899.0,0.8765313]
[1741557555911,0.24184864,81905.0,81904.0,0.1221039]
[1741557556119,0.20000864,81905.0,81904.0,0.8506039]
[1741557556309,0.26064277,81911.0,81910.0,0.1220949]
[1741557556509,0.26064277,81911.0,81910.0,0.5724149]
[1741557556710,0.26064277,81911.0,81910.0,0.7224149]
[1741557556913,0.2411,81926.0,81923.0,0.1220743]
[1741557557220,0.3411,81926.0,81924.0,0.70092]
[1741557557420,0.2446,81925.0,81924.0,0.70092]
[1741557557623,0.3346,81925.0,81924.0,0.70092]
[1741557558223,0.09,81925.0,81924.0,0.8229941]
[1741557558419,0.05638745,81925.0,81924.0,0.8229941]
[1741557558621,0.00895777,81925.0,81924.0,0.70092]
[1741557558920,0.00895777,81925.0,81924.0,0.8229941]
[1741557560613,0.00895777,81925.0,81924.0,0.83672778]
[1741557561216,0.00895777,81925.0,81912.0,0.0610455]
[1741557561217,0.1220845,81917.0,81910.0,0.36152]
[1741557561418,0.4008,81917.0,81899.0,0.00901507]
[1741557561619,0.4008,81917.0,81891.0,0.45028]
[1741557561620,0.061049,81908.0,81904.0,0.3608]
[1741557561825,0.5027,81907.0,81898.0,0.1221127]
[1741557562027,0.8548,81907.0,81904.0,0.3608]
[1741557562621,0.7327,81907.0,81904.0,0.3608]
[1741557563926,0.7327,81907.0,81904.0,0.37489734]
[1741557564119,0.7327,81907.0,81905.0,0.1221013]
[1741557564319,0.4705,81907.0,81906.0,0.1221009]
[1741557564521,0.23,81907.0,81906.0,0.6187009]
[1741557565623,0.08944,81940.0,81906.0,0.4966]
[1741557565928,0.08944,81940.0,81930.0,0.3608]
[1741557565929,0.5125,81933.0,81930.0,0.3608]
[1741557566121,0.5425,81933.0,81931.0,0.2444]
[1741557566927,0.5425,81933.0,81932.0,0.1220621]
[1741557567724,0.5425,81933.0,81932.0,0.3704621]
[1741557567921,0.2889,81933.0,81932.0,0.3704621]
[1741557568120,0.00018318,81940.0,81932.0,0.6092]
[1741557568320,0.00018318,81940.0,81939.0,0.4828517]
[1741557568321,0.03018318,81940.0,81939.0,0.4828517]
[1741557568522,0.03018318,81940.0,81939.0,0.5722917]
[1741557568927,0.03018318,81940.0,81939.0,1.0609917]
[1741557568928,0.00018318,81940.0,81939.0,1.0609917]
[1741557569125,0.122015,81964.0,81953.0,0.1220294]
[1741557569432,0.2643,81956.0,81955.0,0.1220274]
[1741557569627,0.3643,81956.0,81955.0,0.1359577]
[1741557570223,0.3643,81956.0,81955.0,0.3846577]
[1741557570627,0.1,81956.0,81955.0,0.7454577]
[1741557570826,0.2643,81962.0,81955.0,0.7454577]
[1741557571029,0.06385335,81962.0,81961.0,0.1830278]
[1741557571230,0.06385335,81962.0,81961.0,0.2724678]
[1741557571425,0.06385335,81962.0,81961.0,0.7871678]
[1741557573147,0.06385335,81962.0,81961.0,0.6651488]
[1741557573338,0.06385335,81962.0,81955.0,0.3608]
[1741557573646,0.1220383,81948.0,81942.0,0.0894]
[1741557573842,0.3820383,81948.0,81942.0,0.0894]
[1741557574043,0.3820383,81948.0,81939.0,0.21870834]
[1741557574248,0.1220502,81940.0,81939.0,0.21870834]
[1741557574548,0.1220696,81927.0,81909.0,0.4502]
[1741557574743,0.1220815,81919.0,81911.0,0.01414857]
[1741557575046,0.6308,81919.0,81912.0,0.1220918]